bitfinex-derivatives/quotes_SOLF0:USTF0_20241206
["timestamp","ask_amount","ask_price","bid_price","bid_amount"]
[1733465266928,5.81653095,238.97,238.93,2.12]
[1733465267135,5.81653095,238.99,238.95,2.0911]
[1733465267629,5.81653095,238.99,238.96,2.091]
[1733465267835,5.81653095,238.99,238.93,2.12]
[1733465268735,5.81653095,238.99,238.95,2.0911]
[1733465268939,5.81653095,238.99,238.93,2.12]
[1733465269837,5.81653095,238.99,238.95,2.0911]
[1733465270434,5.81653095,239.01,238.95,2.0911]
[1733465270844,2.0907,239.0,238.95,2.0911]
[1733465271531,5.81653095,238.99,238.95,2.0911]
[1733465272731,5.81653095,238.99,238.93,4.2112]
[1733465272940,0.23553,239.03,238.93,2.12]
[1733465273239,5.81653095,238.99,238.93,2.12]
[1733465274240,5.81653095,238.99,238.93,2.0912]
[1733465274836,5.81653095,238.97,238.93,2.0912]
[1733465275035,5.81653095,238.95,238.91,4.2113]
[1733465275238,5.81653095,238.95,238.91,2.0913]
[1733465275938,2.091,238.96,238.91,2.0913]
[1733465276437,2.12,238.99,238.89,14.21015172]
[1733465276633,5.81653095,238.98,238.89,14.21015172]
[1733465277039,2.0909,238.97,238.92,2.0913]
[1733465277230,5.81653095,238.98,238.89,14.21015172]
[1733465278645,5.81653095,238.96,238.91,2.0914]
[1733465279639,7.90763095,238.96,238.91,2.0914]
[1733465280543,5.81653095,238.96,238.89,14.21015172]
[1733465280745,2.0911,238.95,238.89,14.21015172]
[1733465280938,2.0911,238.95,238.87,2.12]
[1733465281142,5.81653095,238.96,238.86,2.12]
[1733465281443,5.81653095,238.96,238.86,7.93653095]
[1733465281648,2.12,238.99,238.86,7.93653095]
[1733465281649,2.12,238.99,238.88,2.0916]
[1733465281845,5.81653095,238.95,238.88,2.0916]
[1733465282140,2.12,238.99,238.86,7.93653095]
[1733465282141,7.90803095,238.91,238.86,2.0918]
[1733465282342,5.81653095,238.91,238.83,8.31102915]
[1733465282641,5.81653095,238.91,238.82,2.12]
[1733465282845,2.12,238.94,238.84,2.092]
[1733465282846,7.90813095,238.89,238.84,2.092]
[1733465283435,2.12,238.94,238.85,5.81653095]
[1733465283642,7.93653095,238.94,238.85,5.81653095]
[1733465283846,2.12,238.94,238.85,5.81653095]
[1733465284042,2.12,238.94,238.87,5.81653095]
[1733465284240,5.81653095,238.97,238.88,8.54774785]
[1733465284938,2.091,238.96,238.91,2.0914]
[1733465285136,2.091,238.96,238.88,8.54774785]
[1733465285941,5.81653095,238.97,238.91,2.0914]
[1733465286143,7.90743095,238.97,238.89,5.81653095]
[1733465286348,2.12,239.02,238.89,5.81653095]
[1733465286544,5.81653095,239.0,238.91,5.81653095]
[1733465286849,5.81653095,239.0,238.91,7.93653095]
[1733465287651,7.90723095,239.0,238.94,2.0911]
[1733465288348,2.0907,238.99,238.94,2.0911]
[1733465288744,2.12,239.04,238.93,5.81653095]
[1733465288951,2.0906,239.01,238.96,2.0909]
[1733465289251,2.0906,239.01,238.93,5.81653095]
[1733465290646,2.0906,239.01,238.95,2.0911]
[1733465291546,26.99995078,239.05,238.93,5.81653095]
[1733465291851,7.90703095,239.02,238.96,2.091]
[1733465292750,2.0906,239.01,238.96,2.091]
[1733465296246,5.81653095,239.02,238.93,5.81653095]
[1733465296447,5.81653095,239.02,238.97,2.0909]
[1733465297047,24.87995078,239.05,238.96,2.12]
[1733465297248,5.81653095,239.04,238.99,2.0907]
[1733465297554,5.81653095,239.04,238.96,2.12]
[1733465297555,5.81653095,239.04,238.98,8.2819505]
[1733465297754,5.81653095,239.04,238.96,2.12]
[1733465298358,5.81653095,239.02,238.96,2.12]
[1733465298756,5.81653095,239.04,238.96,2.12]
[1733465299362,2.0902,239.05,239.0,2.0906]
[1733465299658,5.81653095,239.04,238.96,2.12]
[1733465300662,7.90683095,239.04,238.99,2.0907]
[1733465301063,7.90683095,239.04,238.96,2.12]
[1733465301367,7.90683095,239.04,238.97,2.0908]
[1733465301561,4.0789,239.1,238.97,5.81653095]
[1733465301761,7.90673095,239.06,238.97,5.81653095]
[1733465302764,5.81653095,239.04,239.0,2.0906]
[1733465303766,5.81653095,239.06,238.98,8.44206631]
[1733465303967,5.81653095,239.06,238.97,5.81653095]
[1733465304357,5.81653095,239.06,238.96,2.12]
[1733465304358,5.81653095,239.04,239.0,2.0906]
[1733465304758,5.81653095,239.06,238.99,8.29562671]
[1733465304958,5.81653095,239.06,238.97,5.81653095]
[1733465305562,7.90673095,239.06,238.97,5.81653095]
[1733465306564,7.90673095,239.06,239.0,2.0906]
[1733465307868,7.90673095,239.06,239.01,2.0905]
[1733465311073,2.12,239.09,238.96,2.12]
[1733465311074,5.81653095,239.02,238.96,2.12]
[1733465311771,7.90703095,239.02,238.96,4.2109]
[1733465311965,7.90703095,239.02,238.96,2.12]
[1733465312568,5.81653095,239.02,238.96,2.12]
[1733465312768,5.81653095,239.02,238.93,2.08]
[1733465313669,5.81653095,239.02,238.92,14.0444708]
[1733465313867,2.0908,238.98,238.92,10.31923985]
[1733465314065,2.0908,238.98,238.88,2.08]
[1733465314066,5.81653095,238.98,238.88,2.08]
[1733465314266,5.81653095,238.98,238.88,7.89653095]
[1733465314470,5.81653095,238.98,238.89,2.0915]
[1733465314471,2.091,238.96,238.89,2.0915]
[1733465314670,5.81653095,238.98,238.88,7.89653095]
[1733465315069,24.62060205,239.08,238.92,5.81653095]
[1733465315274,2.08,239.07,238.92,5.81653095]
[1733465315475,5.81653095,239.03,238.94,5.81653095]
[1733465315679,2.0905,239.02,238.96,2.091]
[1733465316071,5.81653095,239.05,238.96,5.81653095]
[1733465317771,5.81653095,239.05,238.98,2.0908]
[1733465318678,7.90693095,239.03,238.98,2.0908]
[1733465319080,5.81653095,239.03,238.94,14.38389278]
[1733465319275,5.81653095,238.99,238.93,2.08]
[1733465319475,5.81653095,238.99,238.91,5.81653095]
[1733465319774,2.0906,239.01,238.95,2.0911]
[1733465319977,2.0906,239.01,238.95,8.25782338]
[1733465320173,2.0906,239.01,238.93,5.81653095]
[1733465320373,5.81653095,239.03,238.93,5.81653095]
[1733465320575,2.0907,239.0,238.95,2.0911]
[1733465320779,5.81653095,239.01,238.91,7.89653095]
[1733465320975,5.81653095,238.99,238.91,7.89653095]
[1733465321180,2.091,238.96,238.81,10.15696379]
[1733465321376,2.091,238.96,238.88,7.89653095]
[1733465322581,2.091,238.96,238.88,5.81653095]
[1733465322771,2.091,238.96,238.9,2.0915]
[1733465322975,5.81653095,238.97,238.9,2.0915]
[1733465323177,2.0911,238.95,238.9,2.0915]
[1733465325082,2.0913,238.93,238.87,10.25647283]
[1733465325285,2.0913,238.93,238.87,8.16477283]
[1733465325585,5.81653095,238.95,238.86,5.81653095]
[1733465325586,2.0912,238.94,238.88,2.0917]
[1733465325883,2.0912,238.94,238.86,5.81653095]
[1733465326084,2.0912,238.94,238.87,8.17787913]
[1733465326279,2.0912,238.94,238.88,5.81653095]
[1733465326679,5.81653095,238.97,238.89,2.0916]
[1733465327382,2.0911,238.96,238.89,2.0916]
[1733465327587,5.81653095,238.97,238.89,2.0916]
[1733465328186,7.90753095,238.97,238.91,2.0914]
[1733465328388,7.90753095,238.97,238.89,5.81653095]
[1733465328982,7.90753095,238.97,238.91,2.0914]
[1733465329186,2.091,238.96,238.91,2.0914]
[1733465330288,5.81653095,238.99,238.91,2.0914]
[1733465330289,2.0909,238.98,238.91,2.0914]
[1733465330484,2.08,239.0,238.89,5.81653095]
[1733465330686,5.81653095,238.98,238.91,2.0914]
[1733465330891,2.091,238.96,238.91,2.0914]
[1733465332793,2.0911,238.95,238.89,2.0915]
[1733465334189,2.0912,238.94,238.88,2.0917]
[1733465334392,2.0912,238.94,238.86,5.81653095]
[1733465334799,2.0911,238.95,238.89,2.0916]
[1733465336496,2.0911,238.95,238.9,2.0915]
[1733465336990,1.3251,238.99,238.87,8.26444035]
[1733465337194,0.26168,239.06,238.96,5.81653095]
[1733465337195,5.81653095,239.04,238.96,5.81653095]
[1733465337498,2.06,239.05,238.97,8.50719207]
[1733465337697,2.0902,239.05,238.99,2.0907]
[1733465339591,2.0905,239.02,238.97,2.0908]
[1733465339798,2.0905,239.02,238.96,5.81653095]
[1733465340192,5.81653095,239.04,238.97,2.0909]
[1733465341601,5.81653095,239.02,238.97,2.0909]
[1733465342395,7.90703095,239.02,238.96,2.091]
[1733465342598,7.90703095,239.02,238.91,5.81653095]
[1733465342599,5.81653095,239.0,238.91,5.81653095]
[1733465342800,5.81653095,238.98,238.87,3.4615]
[1733465342996,7.90743095,238.98,238.93,2.0912]
[1733465343897,7.90743095,238.98,238.92,2.0913]
[1733465345601,7.90743095,238.98,238.91,8.41357684]
[1733465345602,7.90743095,238.98,238.91,10.50497684]
[1733465345903,2.0909,238.97,238.91,8.41357684]
[1733465346108,2.0909,238.97,238.9,5.81653095]
[1733465346402,2.0909,238.97,238.91,8.29756904]
[1733465346604,2.0909,238.97,238.92,2.0913]
[1733465347505,2.0908,238.98,238.93,2.0913]
[1733465347704,7.90733095,238.98,238.93,2.0913]
[1733465348403,2.0909,238.97,238.91,2.0914]
[1733465348604,2.0909,238.97,238.88,5.81653095]
[1733465349399,2.0909,238.97,238.93,2.0912]
[1733465349799,5.81653095,238.98,238.93,2.0912]
[1733465350703,7.90743095,238.98,238.93,2.0912]
[1733465351903,2.0909,238.97,238.93,2.0912]
[1733465352105,5.81653095,238.94,238.89,2.0915]
[1733465352504,7.90773095,238.94,238.89,2.0915]
[1733465352705,5.81653095,238.94,238.87,10.29467407]
[1733465352905,5.81653095,238.94,238.87,8.20297407]
[1733465353108,2.0913,238.93,238.87,8.20297407]
[1733465353307,5.81653095,238.94,238.89,2.0916]
[1733465353705,7.90783095,238.94,238.87,8.20297407]
[1733465354109,5.81653095,238.94,238.87,8.20297407]
[1733465354306,2.0913,238.93,238.88,2.0917]
[1733465358812,5.81653095,238.94,238.88,2.0917]
[1733465359112,7.90773095,238.94,238.88,2.0917]
[1733465360309,7.90773095,238.94,238.89,2.0916]
[1733465361111,5.81653095,238.95,238.9,2.0915]
[1733465362811,7.90763095,238.95,238.9,2.0915]
[1733465368711,5.81653095,238.95,238.87,8.47657532]
[1733465369715,2.0913,238.93,238.88,2.0916]
[1733465371021,2.0912,238.94,238.89,2.0916]
[1733465371624,2.0913,238.93,238.87,8.47657532]
[1733465372527,5.81653095,238.95,238.89,2.0916]
[1733465372825,5.81653095,238.95,238.87,8.47657532]
[1733465373017,2.0911,238.95,238.89,2.0916]
[1733465373219,2.06,238.99,238.89,5.81653095]
[1733465373418,5.81653095,238.97,238.89,5.81653095]
[1733465373722,7.90743095,238.97,238.92,2.0913]
[1733465375226,5.81653095,238.95,238.91,2.0914]
[1733465375826,7.90763095,238.95,238.91,2.0914]
[1733465376116,7.90763095,238.95,238.9,2.0915]
[1733465376117,5.81653095,238.95,238.9,2.0915]
[1733465376323,5.81653095,238.95,238.87,14.3106984]
[1733465376521,2.0912,238.94,238.87,14.3106984]
[1733465377020,2.0912,238.94,238.89,2.0916]
[1733465377419,2.0912,238.94,238.87,14.3106984]
[1733465377820,2.0912,238.94,238.89,2.0916]
[1733465379125,2.0913,238.93,238.88,2.0917]
[1733465380326,7.90783095,238.93,238.88,2.0917]
[1733465380527,7.90783095,238.93,238.87,8.49416745]
[1733465380528,5.81653095,238.93,238.87,8.49416745]
[1733465380827,5.81653095,238.93,238.89,2.0916]
[1733465381127,5.81653095,238.91,238.82,2.06]
[1733465381326,5.81653095,238.91,238.83,5.81653095]
[1733465381522,2.06,239.02,238.88,5.81653095]
[1733465381725,2.06,239.02,238.88,14.09554833]
[1733465381726,5.81653095,238.98,238.88,14.09554833]
[1733465381928,2.091,238.96,238.91,2.0914]
[1733465382121,2.7479,239.06,238.88,14.09554833]
[1733465382323,5.81653095,238.96,238.88,8.27901738]
[1733465382522,5.81653095,238.96,238.91,2.0914]
[1733465382523,7.90753095,238.96,238.91,2.0914]
[1733465382819,5.81653095,238.96,238.89,8.35937993]
[1733465383022,5.81653095,238.96,238.87,2.06]
[1733465383625,2.0912,238.94,238.89,2.0915]
[1733465384320,7.90753095,238.97,238.91,2.0914]
[1733465385129,5.81653095,238.97,238.94,2.0912]
[1733465385726,5.81653095,238.97,238.93,2.0913]
[1733465386230,7.90743095,238.97,238.93,2.0913]
[1733465387823,7.90743095,238.97,238.92,2.0913]
[1733465390229,2.091,238.96,238.91,10.25453402]
[1733465390435,2.091,238.96,238.91,2.0914]
[1733465391128,2.091,238.96,238.91,10.29053184]
[1733465394033,5.81653095,238.94,238.8,4.1831]
[1733465394338,5.81653095,238.91,238.82,5.81653095]
[1733465394528,5.81653095,238.91,238.83,3.87931154]
[1733465394732,5.81653095,238.91,238.84,3.87931154]
[1733465395030,5.81653095,238.91,238.82,5.81653095]
[1733465395031,5.81653095,238.91,238.85,8.24571983]
[1733465395235,7.90803095,238.91,238.85,2.0919]
[1733465395435,7.90803095,238.91,238.85,8.46927865]
[1733465395737,7.90803095,238.91,238.82,5.81653095]
[1733465395938,7.90803095,238.91,238.83,3.87962927]
[1733465396139,2.0915,238.9,238.85,2.0919]
[1733465396438,2.0915,238.9,238.85,10.34766742]
[1733465396639,2.0915,238.9,238.85,2.0919]
[1733465397137,2.0915,238.9,238.85,10.38785777]
[1733465397740,2.0915,238.9,238.85,8.29595777]
[1733465397939,2.0915,238.9,238.82,5.81653095]
[1733465398141,2.0916,238.89,238.83,3.87931021]
[1733465398341,2.0916,238.89,238.82,5.81653095]
[1733465398541,2.0916,238.89,238.83,3.87909086]
[1733465398741,2.0916,238.89,238.82,5.81653095]
[1733465399035,2.0915,238.9,238.84,2.092]
[1733465399239,2.0915,238.9,238.85,8.16903053]
[1733465400641,5.81653095,238.89,238.85,8.16903053]
[1733465400946,2.0915,238.9,238.85,10.26093053]
[1733465401145,2.0915,238.9,238.85,2.0919]
[1733465401846,2.0915,238.9,238.85,10.58246679]
[1733465402050,7.90803095,238.9,238.85,10.58246679]
[1733465402248,2.06,238.94,238.85,8.49056679]
[1733465402444,5.81653095,238.91,238.86,2.0918]
[1733465402748,5.81653095,238.91,238.85,8.42441741]
[1733465403248,5.81653095,238.91,238.86,2.0919]
[1733465403748,2.0914,238.91,238.86,2.0918]
[1733465404148,5.81653095,238.9,238.86,2.0918]
[1733465405948,5.81653095,238.9,238.85,10.51641741]
[1733465406145,5.81653095,238.9,238.85,2.092]
[1733465406747,5.81653095,238.9,238.85,10.26689187]
[1733465406947,5.81653095,238.9,238.85,2.092]
[1733465407344,2.0914,238.91,238.86,2.0918]
[1733465407552,5.81653095,238.9,238.86,2.0918]
[1733465408554,2.0913,238.93,238.87,2.0918]
[1733465408752,5.81653095,238.9,238.87,2.0918]
[1733465411247,5.81653095,238.9,238.85,8.44618809]
[1733465411448,5.81653095,238.9,238.83,5.81653095]
[1733465412651,5.81653095,238.9,238.85,2.092]
[1733465412853,5.81653095,238.9,238.85,10.63542269]
[1733465413156,5.81653095,238.9,238.85,2.092]
[1733465413546,7.90803095,238.9,238.85,10.35496736]
[1733465413846,7.90803095,238.9,238.85,2.092]
[1733465414051,5.81653095,238.88,238.8,6.2431]
[1733465414252,5.81653095,238.86,238.83,2.0921]
[1733465414650,5.81653095,238.86,238.8,4.1831]
[1733465414851,5.81653095,238.86,238.81,3.87709908]
[1733465415049,5.81653095,238.84,238.8,4.1831]
[1733465415356,2.06,238.88,238.76,2.06]
[1733465415357,5.81653095,238.82,238.76,2.0927]
[1733465415555,5.81653095,238.8,238.77,1.04687741]
[1733465415751,0.22245,239.02,238.71,5.81653095]
[1733465415752,5.81653095,238.78,238.71,5.81653095]
[1733465415955,5.81653095,238.78,238.73,2.093]
[1733465416248,5.81653095,238.78,238.74,1.04698442]
[1733465416455,5.81653095,238.78,238.73,2.093]
[1733465417450,2.0924,238.81,238.73,2.093]
[1733465417754,5.81653095,238.78,238.74,2.0929]
[1733465422657,5.81653095,238.78,238.72,8.29608381]
[1733465422958,5.81653095,238.78,238.7,5.81653095]
[1733465422959,5.81653095,238.78,238.73,2.093]
[1733465423262,5.81653095,238.76,238.73,2.093]
[1733465423659,5.81653095,238.76,238.7,8.57703532]
[1733465423956,5.81653095,238.76,238.71,2.0931]
[1733465425059,5.81653095,238.74,238.71,2.0931]
[1733465425260,5.81653095,238.74,238.7,2.0933]
[1733465425653,5.81653095,238.72,238.65,4.2592]
[1733465425860,5.81653095,238.72,238.68,2.0934]
[1733465426359,5.81653095,238.7,238.58,5.63998203]
[1733465426551,5.81653095,238.7,238.61,5.81653095]
[1733465426756,5.81653095,238.7,238.62,8.37868491]
[1733465427159,5.81653095,238.68,238.64,2.0938]
[1733465427458,2.0934,238.69,238.62,8.37868491]
[1733465427459,5.81653095,238.66,238.62,8.37868491]
[1733465427656,5.81653095,238.66,238.6,2.06]
[1733465428058,5.81653095,238.66,238.64,2.0938]
[1733465428659,2.06,238.69,238.64,2.0938]
[1733465428861,7.87653095,238.69,238.64,2.0938]
[1733465429061,9.96993095,238.69,238.64,2.0938]
[1733465429664,7.87653095,238.69,238.64,2.0938]
[1733465429865,7.87653095,238.69,238.6,16.40018161]
[1733465431357,5.81653095,238.67,238.62,2.0939]
[1733465431560,5.81653095,238.67,238.6,16.40018161]
[1733465431862,5.81653095,238.67,238.59,5.81653095]
[1733465432068,5.81653095,238.67,238.59,14.16420895]
[1733465432260,7.91003095,238.67,238.62,2.094]
[1733465432459,7.91003095,238.67,238.59,5.81653095]
[1733465432765,7.91013095,238.66,238.61,2.094]
[1733465432970,5.81653095,238.64,238.58,1.4595]
[1733465433166,5.81653095,238.64,238.58,8.39963624]
[1733465433367,5.81653095,238.64,238.55,5.81653095]
[1733465433668,5.81653095,238.6,238.53,5.81653095]
[1733465434263,7.91073095,238.6,238.54,2.0946]
[1733465434671,5.81653095,238.62,238.54,5.81653095]
[1733465434866,2.0939,238.63,238.57,2.0944]
[1733465435168,2.0939,238.63,238.48,2.8114]
[1733465435169,2.06,238.63,238.58,5.81653095]
[1733465435369,2.06,238.63,238.59,8.35445978]
[1733465435864,2.06,238.63,238.6,2.0941]
[1733465436065,2.06,238.63,238.56,5.81653095]
[1733465436565,2.06,238.63,238.57,8.45156081]
[1733465437365,2.06,238.63,238.57,10.54586081]
[1733465437563,2.06,238.63,238.57,8.45156081]
[1733465438570,5.81653095,238.62,238.57,8.45156081]
[1733465438770,1.325,238.68,238.54,5.81653095]
[1733465438971,5.81653095,238.66,238.58,5.81653095]
[1733465439171,5.81653095,238.66,238.59,8.34258413]
[1733465440164,5.81653095,238.66,238.62,2.0939]
[1733465440569,5.81653095,238.66,238.59,8.34258413]
[1733465440865,1.3426,238.78,238.58,7.87653095]
[1733465441066,1.3426,238.78,238.6,5.81653095]
[1733465441067,5.81653095,238.69,238.6,5.81653095]
[1733465441464,2.06,238.71,238.6,5.81653095]
[1733465441772,5.81653095,238.69,238.6,14.21779239]
[1733465442466,1.3426,238.78,238.64,5.81653095]
[1733465442672,2.06,238.77,238.64,5.81653095]
[1733465442874,5.81653095,238.71,238.64,5.81653095]
[1733465443770,5.81653095,238.71,238.64,8.21778239]
[1733465444073,2.06,238.77,238.63,2.06]
[1733465444269,5.81653095,238.7,238.63,2.06]
[1733465444471,5.81653095,238.7,238.63,10.54511592]
[1733465445772,5.81653095,238.7,238.66,2.0936]
[1733465446670,5.81653095,238.75,238.66,5.81653095]
[1733465447571,5.81653095,238.75,238.7,2.0932]
[1733465447870,5.81653095,238.75,238.66,5.81653095]
[1733465448672,5.81653095,238.75,238.71,2.0931]
[1733465448976,5.81653095,238.75,238.7,8.33510745]
[1733465449169,5.81653095,238.75,238.68,2.0934]
[1733465449377,2.0924,238.81,238.69,2.06]
[1733465449670,5.81653095,238.77,238.7,5.81653095]
[1733465449889,5.81653095,238.77,238.75,2.0928]
[1733465450572,2.7682,238.86,238.73,8.42817]
[1733465450773,5.81653095,238.8,238.77,2.0926]
[1733465452071,5.81653095,238.8,238.73,8.25307184]
[1733465452277,5.81653095,238.78,238.73,2.06]
[1733465452475,5.81653095,238.75,238.73,4.1529]
[1733465452974,5.81653095,238.75,238.73,12.35267118]
[1733465453273,5.81653095,238.75,238.73,4.1529]
[1733465453779,5.81653095,238.75,238.73,12.52856004]
[1733465453974,5.81653095,238.77,238.73,2.06]
[1733465454176,5.81653095,238.77,238.74,2.0929]
[1733465455180,5.81653095,238.77,238.73,10.49345209]
[1733465455982,2.0924,238.8,238.74,2.0929]
[1733465456181,2.06,238.85,238.73,10.49345209]
[1733465456383,5.81653095,238.78,238.73,10.49345209]
[1733465457481,5.81653095,238.78,238.75,2.0928]
[1733465459982,5.81653095,238.76,238.73,8.43345209]
[1733465460181,5.81653095,238.76,238.7,2.06]
[1733465460684,5.81653095,238.78,238.7,10.43098545]
[1733465460882,5.81653095,238.78,238.7,2.06]
[1733465461086,5.81653095,238.78,238.74,2.0929]
[1733465462285,5.81653095,238.76,238.69,2.06]
[1733465462483,5.81653095,238.76,238.69,10.42414736]
[1733465462687,5.81653095,238.76,238.69,2.06]
[1733465463289,2.0926,238.78,238.69,10.23313919]
[1733465463480,5.81653095,238.77,238.69,10.23313919]
[1733465463688,5.81653095,238.77,238.72,2.0931]
[1733465463883,5.81653095,238.77,238.69,10.23313919]
[1733465464389,5.81653095,238.77,238.71,2.0931]
[1733465464588,5.81653095,238.77,238.69,10.23313919]
[1733465464789,5.81653095,238.77,238.69,8.17313919]
[1733465464986,5.81653095,238.77,238.72,2.0931]
[1733465465687,5.81653095,238.77,238.73,2.093]
[1733465466793,5.81653095,238.77,238.72,2.0931]
[1733465467394,5.81653095,238.75,238.72,2.0931]
[1733465467888,5.81653095,238.75,238.59,22.22494999]
[1733465467889,5.81653095,238.73,238.64,6.2906]
[1733465468092,5.81653095,238.73,238.64,12.10713095]
[1733465468488,5.81653095,238.73,238.68,2.0934]
[1733465468791,5.81653095,238.71,238.64,3.5212]
[1733465469188,5.81653095,238.71,238.67,2.0935]
[1733465470183,5.81653095,238.71,238.64,2.0938]
[1733465470388,2.0931,238.72,238.64,5.81653095]
[1733465470594,5.81653095,238.72,238.64,5.81653095]
[1733465470794,2.0932,238.71,238.65,2.0937]
[1733465471088,5.81653095,238.7,238.61,10.56357112]
[1733465471294,5.81653095,238.7,238.66,2.0936]
[1733465472793,5.81653095,238.7,238.62,5.81653095]
[1733465472794,5.81653095,238.7,238.67,2.0935]
[1733465473690,5.81653095,238.7,238.65,2.0936]
[1733465473989,5.81653095,238.7,238.62,5.81653095]
[1733465474194,5.81653095,238.7,238.66,2.0936]
[1733465475298,5.81653095,238.7,238.62,5.81653095]
[1733465475693,5.81653095,238.7,238.64,2.0938]
[1733465475894,5.81653095,238.7,238.62,5.81653095]
[1733465476394,5.81653095,238.7,238.67,2.0935]
[1733465476595,2.06,238.72,238.66,5.81653095]
[1733465477402,2.06,238.72,238.64,5.81653095]
[1733465478201,2.06,238.72,238.68,2.0934]
[1733465478603,7.87653095,238.72,238.68,2.0934]
[1733465478802,7.87653095,238.72,238.64,5.81653095]
[1733465478803,7.87653095,238.72,238.67,2.0935]
[1733465479809,5.81653095,238.72,238.67,2.0935]
[1733465480503,5.81653095,238.72,238.68,2.0934]
[1733465481503,5.81653095,238.7,238.62,5.81653095]
[1733465482001,12.56,238.96,238.68,5.81653095]
[1733465482201,5.81653095,238.8,238.7,5.81653095]
[1733465482606,5.81653095,238.78,238.74,2.0928]
[1733465482805,5.81653095,238.76,238.69,6.2055]
[1733465483010,5.81653095,238.76,238.69,12.02203095]
[1733465483209,5.81653095,238.76,238.72,2.0931]
[1733465484911,5.81653095,238.76,238.71,2.0932]
[1733465485612,7.90933095,238.76,238.7,2.0933]
[1733465485806,5.81653095,238.76,238.68,10.44720043]
[1733465486111,1.4054,238.83,238.68,10.44720043]
[1733465486316,5.81653095,238.82,238.74,5.81653095]
[1733465486612,7.90893095,238.8,238.74,2.0929]
[1733465486916,5.81653095,238.78,238.7,5.81653095]
[1733465487106,5.81653095,238.78,238.68,10.44720043]
[1733465487107,5.81653095,238.76,238.68,10.44720043]
[1733465489214,5.81653095,238.76,238.68,16.26373138]
[1733465489614,2.06,238.81,238.72,2.0931]
[1733465489816,5.81653095,238.78,238.69,5.81653095]
[1733465490318,2.0927,238.77,238.69,5.81653095]
[1733465490518,5.81653095,238.78,238.69,5.81653095]
[1733465491612,5.81653095,238.76,238.71,2.0932]
[1733465492010,5.81653095,238.76,238.68,16.26373138]
[1733465492214,5.81653095,238.76,238.72,2.0931]
[1733465494127,5.81653095,238.76,238.68,16.26373138]
[1733465494417,5.81653095,238.76,238.69,2.0933]
[1733465494418,2.0929,238.75,238.69,2.0933]
[1733465496518,2.0929,238.75,238.68,2.06]
[1733465496818,2.0929,238.75,238.7,2.0933]
[1733465499616,1.4054,238.83,238.7,5.81653095]
[1733465499817,5.81653095,238.81,238.72,5.81653095]
[1733465500321,5.81653095,238.81,238.77,2.0926]
[1733465500717,7.90883095,238.81,238.77,2.0926]
[1733465501828,7.90883095,238.81,238.73,8.50093259]
[1733465501829,2.0924,238.8,238.76,2.0927]
[1733465502022,5.81653095,238.79,238.76,2.0927]
[1733465503733,5.81653095,238.77,238.71,2.06]
[1733465505129,5.81653095,238.77,238.71,4.1531]
[1733465505324,5.81653095,238.77,238.71,2.06]
[1733465506632,5.81653095,238.77,238.72,2.093]
[1733465509233,7.90923095,238.77,238.72,2.093]
[1733465509634,5.81653095,238.77,238.72,2.093]
[1733465510230,5.81653095,238.79,238.73,2.093]
[1733465510440,7.90903095,238.79,238.73,2.093]
[1733465511934,7.90903095,238.79,238.71,7.87653095]
[1733465512238,5.81653095,238.8,238.71,7.87653095]
[1733465512532,5.81653095,238.8,238.73,5.81653095]
[1733465513129,7.90893095,238.8,238.75,2.0928]
[1733465513836,5.81653095,238.8,238.73,5.81653095]
[1733465514038,5.81653095,238.82,238.78,2.0926]
[1733465515139,7.90873095,238.82,238.78,2.0926]
[1733465515539,5.81653095,238.8,238.76,8.37719974]
[1733465515843,5.81653095,238.81,238.73,5.81653095]
[1733465517141,1.4054,238.83,238.71,3.5211]
[1733465517142,5.81653095,238.79,238.71,3.5211]
[1733465517447,5.81653095,238.79,238.71,9.33763095]
[1733465518338,2.0923,238.81,238.71,9.33763095]
[1733465518542,5.81653095,238.8,238.71,9.33763095]
[1733465518837,7.90893095,238.8,238.74,2.0928]
[1733465519242,5.81653095,238.78,238.74,2.0928]
[1733465519445,2.0924,238.8,238.74,2.0928]
[1733465519643,5.81653095,238.78,238.74,2.0928]
[1733465520843,5.81653095,238.76,238.71,3.5543]
[1733465521045,2.0927,238.77,238.71,3.5543]
[1733465521344,2.06,238.79,238.71,2.0932]
[1733465521541,5.81653095,238.76,238.71,2.0932]
[1733465521741,5.81653095,238.76,238.69,2.06]